[Event "Titled Tuesday Blitz July 18 Early 2023"]
[White "laimis61"]
[Black "Chernyavsky, Alexander"]
[BlackFideId "24131156"]
[WhiteElo "2246"]
[BlackElo "2434"]
[Result "1-0"]
[Round "6"]
[TimeControl "180+2"]
[Date "2023.07.18"]
[WhiteClock "0:00:13"]
[BlackClock "0:00:09"]
[Board "152"]

1. e4 {[%clk 0:03:00]}  c5 {[%clk 0:03:00]} 2. Nf3 {[%clk 0:02:59]}  g6 {[%clk 0:03:01]} 3. d4 {[%clk 0:02:58]}  cxd4 {[%clk 0:03:01]} 4. Nxd4 {[%clk 0:02:58]}  Bg7 {[%clk 0:03:01]} 5. Nc3 {[%clk 0:02:57]}  Nc6 {[%clk 0:03:02]} 6. Nb3 {[%clk 0:02:57]}  Nf6 {[%clk 0:03:00]} 7. Be2 {[%clk 0:02:57]}  O-O {[%clk 0:03:00]} 8. O-O {[%clk 0:02:57]}  a6 {[%clk 0:03:00]} 9. Bg5 {[%clk 0:02:51]}  b5 {[%clk 0:02:57]} 10. a3 {[%clk 0:02:31]}  d6 {[%clk 0:02:54]} 11. f4 {[%clk 0:02:30]}  Be6 {[%clk 0:02:43]} 12. Bf3 {[%clk 0:02:29]}  Rc8 {[%clk 0:02:42]} 13. Kh1 {[%clk 0:02:28]}  h6 {[%clk 0:02:07]} 14. Bh4 {[%clk 0:02:20]}  Bxb3 {[%clk 0:02:07]} 15. cxb3 {[%clk 0:02:19]}  e5 {[%clk 0:02:08]} 16. f5 {[%clk 0:02:07]}  Nd4 {[%clk 0:01:57]} 17. fxg6 {[%clk 0:02:00]}  fxg6 {[%clk 0:01:58]} 18. b4 {[%clk 0:01:33]}  Qd7 {[%clk 0:01:48]} 19. Qd3 {[%clk 0:01:32]}  g5 {[%clk 0:01:45]} 20. Bf2 {[%clk 0:01:30]}  Ne6 {[%clk 0:01:39]} 21. Be3 {[%clk 0:01:27]}  Nf4 {[%clk 0:01:38]} 22. Bxf4 {[%clk 0:01:25]}  exf4 {[%clk 0:01:34]} 23. Rad1 {[%clk 0:01:19]}  Rcd8 {[%clk 0:01:34]} 24. Be2 {[%clk 0:01:11]}  Kh8 {[%clk 0:01:33]} 25. a4 {[%clk 0:01:08]}  bxa4 {[%clk 0:01:32]} 26. Qxa6 {[%clk 0:01:07]}  Qe6 {[%clk 0:01:28]} 27. b5 {[%clk 0:01:01]}  Nxe4 {[%clk 0:01:14]} 28. Nxe4 {[%clk 0:01:00]}  Qxe4 {[%clk 0:01:15]} 29. b6 {[%clk 0:00:59]}  Bxb2 {[%clk 0:01:07]} 30. b7 {[%clk 0:00:56]}  a3 {[%clk 0:01:06]} 31. Bf3 {[%clk 0:00:55]}  Qb4 {[%clk 0:01:02]} 32. Bd5 {[%clk 0:00:55]}  Be5 {[%clk 0:00:59]} 33. Rb1 {[%clk 0:00:52]}  Qd2 {[%clk 0:00:57]} 34. Qc6 {[%clk 0:00:47]}  a2 {[%clk 0:00:52]} 35. Rbd1 {[%clk 0:00:44]}  Qb2 {[%clk 0:00:47]} 36. Ra1 {[%clk 0:00:38]}  f3 {[%clk 0:00:38]} 37. Bxf3 {[%clk 0:00:34]}  Qxa1 {[%clk 0:00:27]} 38. Rxa1 {[%clk 0:00:32]}  Bxa1 {[%clk 0:00:28]} 39. Qa6 {[%clk 0:00:29]}  Rfe8 {[%clk 0:00:24]} 40. g3 {[%clk 0:00:21]}  Bd4 {[%clk 0:00:16]} 41. Qxa2 {[%clk 0:00:20]}  Re1+ {[%clk 0:00:16]} 42. Kg2 {[%clk 0:00:20]}  Rg1+ {[%clk 0:00:17]} 43. Kh3 {[%clk 0:00:19]}  Rf1 {[%clk 0:00:14]} 44. Qd5 {[%clk 0:00:17]}  Be5 {[%clk 0:00:13]} 45. Qf7 {[%clk 0:00:14]}  Rc8 {[%clk 0:00:09]} 46. bxc8=Q# {[%clk 0:00:13]} 1-0


[Site "https://www.chess.com"]

[Event "Titled Tuesday Blitz July 18 Early 2023"]
[White "Starosta, Martyna"]
[Black "Levitan, Ronit"]
[WhiteFideId "21818754"]
[BlackFideId "2815109"]
[WhiteElo "2422"]
[BlackElo "2224"]
[Result "0-1"]
[Round "6"]
[TimeControl "180+2"]
[Date "2023.07.18"]
[WhiteClock "0:00:00"]
[BlackClock "0:00:13"]
[Board "155"]

1. e4 {[%clk 0:02:55]}  e5 {[%clk 0:02:59]} 2. Nf3 {[%clk 0:02:55]}  Nc6 {[%clk 0:02:58]} 3. Bc4 {[%clk 0:02:55]}  Bc5 {[%clk 0:02:57]} 4. c3 {[%clk 0:02:54]}  Nf6 {[%clk 0:02:57]} 5. d4 {[%clk 0:02:54]}  exd4 {[%clk 0:02:56]} 6. cxd4 {[%clk 0:02:55]}  Bb4+ {[%clk 0:02:55]} 7. Bd2 {[%clk 0:02:42]}  Nxe4 {[%clk 0:02:45]} 8. Bxb4 {[%clk 0:02:32]}  Nxb4 {[%clk 0:02:44]} 9. Bxf7+ {[%clk 0:02:19]}  Kxf7 {[%clk 0:02:44]} 10. Qb3+ {[%clk 0:02:19]}  d5 {[%clk 0:02:44]} 11. Qxb4 {[%clk 0:02:19]}  a5 {[%clk 0:02:11]} 12. Ne5+ {[%clk 0:02:08]}  Ke6 {[%clk 0:02:09]} 13. Qb3 {[%clk 0:02:06]}  a4 {[%clk 0:02:03]} 14. Qh3+ {[%clk 0:02:03]}  Ke7 {[%clk 0:01:35]} 15. Qe3 {[%clk 0:01:54]}  Re8 {[%clk 0:01:28]} 16. f3 {[%clk 0:01:50]}  Nf6 {[%clk 0:00:57]} 17. O-O {[%clk 0:01:35]}  Kf8 {[%clk 0:00:57]} 18. Nc3 {[%clk 0:01:30]}  c6 {[%clk 0:00:56]} 19. Rae1 {[%clk 0:01:29]}  Kg8 {[%clk 0:00:55]} 20. g4 {[%clk 0:01:14]}  Nd7 {[%clk 0:00:52]} 21. Qf4 {[%clk 0:00:56]}  Qf6 {[%clk 0:00:46]} 22. Nd3 {[%clk 0:00:27]}  Rf8 {[%clk 0:00:25]} 23. Qe3 {[%clk 0:00:24]}  Nb6 {[%clk 0:00:24]} 24. Ne5 {[%clk 0:00:20]}  Nc4 {[%clk 0:00:23]} 25. Nxc4 {[%clk 0:00:20]}  dxc4 {[%clk 0:00:24]} 26. Ne4 {[%clk 0:00:20]}  Qg6 {[%clk 0:00:21]} 27. Nc5 {[%clk 0:00:17]}  b6 {[%clk 0:00:19]} 28. Ne4 {[%clk 0:00:16]}  Bd7 {[%clk 0:00:19]} 29. Qc3 {[%clk 0:00:15]}  b5 {[%clk 0:00:19]} 30. Nc5 {[%clk 0:00:16]}  Bxg4 {[%clk 0:00:17]} 31. fxg4 {[%clk 0:00:15]}  Qxg4+ {[%clk 0:00:18]} 32. Kh1 {[%clk 0:00:13]}  Rae8 {[%clk 0:00:18]} 33. Rxf8+ {[%clk 0:00:06]}  Rxf8 {[%clk 0:00:19]} 34. Qe3 {[%clk 0:00:05]}  h5 {[%clk 0:00:18]} 35. Qe6+ {[%clk 0:00:05]}  Qxe6 {[%clk 0:00:18]} 36. Nxe6 {[%clk 0:00:05]}  Rf2 {[%clk 0:00:17]} 37. Rb1 {[%clk 0:00:04]}  Re2 {[%clk 0:00:17]} 38. Nd8 {[%clk 0:00:04]}  c5 {[%clk 0:00:12]} 39. dxc5 {[%clk 0:00:04]}  Rd2 {[%clk 0:00:12]} 40. Nb7 {[%clk 0:00:05]}  Rd7 {[%clk 0:00:11]} 41. c6 {[%clk 0:00:05]}  Rc7 {[%clk 0:00:12]} 42. Rd1 {[%clk 0:00:06]}  Rxc6 {[%clk 0:00:11]} 43. Nd8 {[%clk 0:00:06]}  Rf6 {[%clk 0:00:11]} 44. Nb7 {[%clk 0:00:05]}  b4 {[%clk 0:00:11]} 45. Nc5 {[%clk 0:00:05]}  a3 {[%clk 0:00:11]} 46. bxa3 {[%clk 0:00:05]}  bxa3 {[%clk 0:00:11]} 47. Ne4 {[%clk 0:00:04]}  Rf4 {[%clk 0:00:11]} 48. Nd6 {[%clk 0:00:03]}  Rf2 {[%clk 0:00:11]} 49. Nxc4 {[%clk 0:00:03]}  Rxa2 {[%clk 0:00:12]} 50. Rd3 {[%clk 0:00:01]}  Ra1+ {[%clk 0:00:12]} 51. Kg2 {[%clk 0:00:01]}  a2 {[%clk 0:00:12]} 52. Ra3 {[%clk 0:00:02]}  Kf7 {[%clk 0:00:13]} 53. Nd2 {[%clk 0:00:00]}  Kf6 {[%clk 0:00:13]} 0-1


[Site "https://www.chess.com"]

[Event "Titled Tuesday Blitz July 18 Early 2023"]
[White "ogpin"]
[Black "Rom, Jasper"]
[BlackFideId "2023733"]
[WhiteElo "2084"]
[BlackElo "2413"]
[Result "0-1"]
[Round "6"]
[TimeControl "180+2"]
[Date "2023.07.18"]
[WhiteClock "0:00:00"]
[BlackClock "0:00:11"]
[Board "157"]

1. d4 {[%clk 0:03:00]}  d5 {[%clk 0:02:59]} 2. Nc3 {[%clk 0:02:59]}  e6 {[%clk 0:02:58]} 3. e4 {[%clk 0:02:56]}  Nf6 {[%clk 0:02:57]} 4. Bg5 {[%clk 0:02:56]}  dxe4 {[%clk 0:02:56]} 5. Nxe4 {[%clk 0:02:55]}  Be7 {[%clk 0:02:56]} 6. Bxf6 {[%clk 0:02:51]}  gxf6 {[%clk 0:02:56]} 7. Nf3 {[%clk 0:02:49]}  f5 {[%clk 0:02:55]} 8. Nc3 {[%clk 0:02:48]}  a6 {[%clk 0:02:55]} 9. g3 {[%clk 0:02:48]}  b5 {[%clk 0:02:54]} 10. Bg2 {[%clk 0:02:48]}  Bb7 {[%clk 0:02:54]} 11. O-O {[%clk 0:02:47]}  c5 {[%clk 0:02:49]} 12. dxc5 {[%clk 0:02:40]}  Qxd1 {[%clk 0:02:45]} 13. Raxd1 {[%clk 0:02:41]}  Bxc5 {[%clk 0:02:45]} 14. a4 {[%clk 0:02:18]}  b4 {[%clk 0:02:43]} 15. Ne2 {[%clk 0:02:18]}  Nd7 {[%clk 0:02:42]} 16. Nf4 {[%clk 0:02:09]}  Ke7 {[%clk 0:02:27]} 17. Rfe1 {[%clk 0:02:03]}  Nf6 {[%clk 0:02:21]} 18. Nh4 {[%clk 0:01:59]}  Ne4 {[%clk 0:02:15]} 19. Bxe4 {[%clk 0:01:37]}  Bxe4 {[%clk 0:02:13]} 20. Kf1 {[%clk 0:01:27]}  Rhd8 {[%clk 0:01:59]} 21. f3 {[%clk 0:01:22]}  Rxd1 {[%clk 0:01:51]} 22. Rxd1 {[%clk 0:01:23]}  Bxc2 {[%clk 0:01:51]} 23. Rc1 {[%clk 0:01:05]}  b3 {[%clk 0:01:50]} 24. Nhg2 {[%clk 0:00:45]}  Rd8 {[%clk 0:01:39]} 25. Ne1 {[%clk 0:00:43]}  Be3 {[%clk 0:01:38]} 26. Ra1 {[%clk 0:00:35]}  Rd2 {[%clk 0:01:29]} 27. Ne2 {[%clk 0:00:26]}  Bd1 {[%clk 0:01:23]} 28. Nc3 {[%clk 0:00:15]}  Rf2+ {[%clk 0:01:22]} 29. Kg1 {[%clk 0:00:16]}  Rxf3+ {[%clk 0:01:01]} 30. Kg2 {[%clk 0:00:13]}  Rf2+ {[%clk 0:01:01]} 31. Kg1 {[%clk 0:00:12]}  Rxb2+ {[%clk 0:00:49]} 32. Kh1 {[%clk 0:00:12]}  Bg4 {[%clk 0:00:33]} 33. Nd1 {[%clk 0:00:05]}  Bxd1 {[%clk 0:00:15]} 34. Rxd1 {[%clk 0:00:05]}  Rd2 {[%clk 0:00:11]} 35. Rb1 {[%clk 0:00:06]}  b2 {[%clk 0:00:11]} 36. Nf3 {[%clk 0:00:00]}  Rc2 {[%clk 0:00:11]} 0-1


[Site "https://www.chess.com"]

[Event "Titled Tuesday Blitz July 18 Early 2023"]
[White "Filgueira, Hernan"]
[Black "Martin Barcelo, Carles"]
[WhiteFideId "101770"]
[BlackFideId "24561444"]
[WhiteElo "2578"]
[BlackElo "2449"]
[Result "1/2-1/2"]
[Round "6"]
[TimeControl "180+2"]
[Date "2023.07.18"]
[WhiteClock "0:00:06"]
[BlackClock "0:00:15"]
[Board "158"]

1. e4 {[%clk 0:02:56]}  e6 {[%clk 0:02:58]} 2. d4 {[%clk 0:02:54]}  d5 {[%clk 0:02:59]} 3. Nd2 {[%clk 0:02:54]}  dxe4 {[%clk 0:02:54]} 4. Nxe4 {[%clk 0:02:53]}  Nd7 {[%clk 0:02:54]} 5. Nf3 {[%clk 0:02:53]}  Ngf6 {[%clk 0:02:55]} 6. Bd3 {[%clk 0:02:53]}  Nxe4 {[%clk 0:02:55]} 7. Bxe4 {[%clk 0:02:54]}  Nf6 {[%clk 0:02:55]} 8. Bd3 {[%clk 0:02:53]}  c5 {[%clk 0:02:56]} 9. dxc5 {[%clk 0:02:43]}  Bxc5 {[%clk 0:02:55]} 10. O-O {[%clk 0:02:44]}  O-O {[%clk 0:02:54]} 11. Bg5 {[%clk 0:02:42]}  h6 {[%clk 0:02:51]} 12. Bh4 {[%clk 0:02:42]}  Be7 {[%clk 0:02:50]} 13. Qe2 {[%clk 0:02:38]}  Qc7 {[%clk 0:02:48]} 14. Bg3 {[%clk 0:02:26]}  Bd6 {[%clk 0:02:47]} 15. Bxd6 {[%clk 0:02:25]}  Qxd6 {[%clk 0:02:48]} 16. Rad1 {[%clk 0:02:25]}  Qc7 {[%clk 0:02:48]} 17. Qe5 {[%clk 0:02:23]}  Qxe5 {[%clk 0:02:27]} 18. Nxe5 {[%clk 0:02:22]}  Nd7 {[%clk 0:02:26]} 19. Nxd7 {[%clk 0:02:13]}  Bxd7 {[%clk 0:02:27]} 20. Bh7+ {[%clk 0:02:13]}  Kxh7 {[%clk 0:02:26]} 21. Rxd7 {[%clk 0:02:13]}  Rab8 {[%clk 0:02:14]} 22. Rfd1 {[%clk 0:02:11]}  Kg8 {[%clk 0:02:12]} 23. Kf1 {[%clk 0:02:09]}  Rfc8 {[%clk 0:02:11]} 24. c3 {[%clk 0:02:08]}  Kf8 {[%clk 0:02:12]} 25. Ke2 {[%clk 0:01:53]}  Ke8 {[%clk 0:02:10]} 26. g3 {[%clk 0:01:43]}  Rd8 {[%clk 0:02:10]} 27. R7d4 {[%clk 0:01:39]}  Rxd4 {[%clk 0:02:03]} 28. Rxd4 {[%clk 0:01:38]}  Rd8 {[%clk 0:02:03]} 29. Rb4 {[%clk 0:01:38]}  Rd7 {[%clk 0:02:03]} 30. a4 {[%clk 0:01:37]}  b6 {[%clk 0:02:01]} 31. Rb5 {[%clk 0:01:34]}  Rc7 {[%clk 0:01:53]} 32. a5 {[%clk 0:01:31]}  bxa5 {[%clk 0:01:54]} 33. Rxa5 {[%clk 0:01:30]}  Kd7 {[%clk 0:01:55]} 34. Ra6 {[%clk 0:01:29]}  Ke7 {[%clk 0:01:50]} 35. Kd3 {[%clk 0:01:27]}  g5 {[%clk 0:01:50]} 36. b4 {[%clk 0:01:25]}  f5 {[%clk 0:01:49]} 37. c4 {[%clk 0:01:25]}  h5 {[%clk 0:01:44]} 38. c5 {[%clk 0:01:24]}  h4 {[%clk 0:01:39]} 39. Kc4 {[%clk 0:01:24]}  h3 {[%clk 0:01:39]} 40. b5 {[%clk 0:01:23]}  Kd7 {[%clk 0:01:38]} 41. Rd6+ {[%clk 0:01:18]}  Ke7 {[%clk 0:01:38]} 42. Ra6 {[%clk 0:01:14]}  Kd7 {[%clk 0:01:37]} 43. Kd4 {[%clk 0:01:14]}  Ke7 {[%clk 0:01:33]} 44. f4 {[%clk 0:01:02]}  g4 {[%clk 0:01:13]} 45. Kc4 {[%clk 0:01:01]}  Kd7 {[%clk 0:01:11]} 46. Ra1 {[%clk 0:00:58]}  Ke7 {[%clk 0:01:10]} 47. c6 {[%clk 0:00:56]}  e5 {[%clk 0:01:01]} 48. fxe5 {[%clk 0:00:51]}  Ke6 {[%clk 0:01:01]} 49. Kc5 {[%clk 0:00:49]}  Rh7 {[%clk 0:00:36]} 50. Ra4 {[%clk 0:00:45]}  Kxe5 {[%clk 0:00:34]} 51. b6 {[%clk 0:00:40]}  axb6+ {[%clk 0:00:31]} 52. Kxb6 {[%clk 0:00:41]}  Kd6 {[%clk 0:00:27]} 53. Rd4+ {[%clk 0:00:36]}  Ke5 {[%clk 0:00:28]} 54. Rd7 {[%clk 0:00:32]}  Rh8 {[%clk 0:00:16]} 55. c7 {[%clk 0:00:32]}  Rc8 {[%clk 0:00:17]} 56. Rf7 {[%clk 0:00:27]}  Ke4 {[%clk 0:00:15]} 57. Kb7 {[%clk 0:00:25]}  Re8 {[%clk 0:00:14]} 58. c8=Q {[%clk 0:00:23]}  Rxc8 {[%clk 0:00:14]} 59. Kxc8 {[%clk 0:00:24]}  Kf3 {[%clk 0:00:12]} 60. Rxf5+ {[%clk 0:00:23]}  Kg2 {[%clk 0:00:13]} 61. Rf4 {[%clk 0:00:24]}  Kxh2 {[%clk 0:00:13]} 62. Rxg4 {[%clk 0:00:24]}  Kg2 {[%clk 0:00:13]} 63. Rg8 {[%clk 0:00:11]}  h2 {[%clk 0:00:13]} 64. Rh8 {[%clk 0:00:11]}  Kxg3 {[%clk 0:00:14]} 65. Kd7 {[%clk 0:00:10]}  Kg2 {[%clk 0:00:15]} 66. Rg8+ {[%clk 0:00:10]}  Kf2 {[%clk 0:00:15]} 67. Rh8 {[%clk 0:00:10]}  Kg2 {[%clk 0:00:16]} 68. Rxh2+ {[%clk 0:00:06]}  Kxh2 {[%clk 0:00:15]} 1/2-1/2


[Site "https://www.chess.com"]

[Event "Titled Tuesday Blitz July 18 Early 2023"]
[White "Ambartsumova, Karina"]
[Black "Villarreal, Agustin"]
[WhiteFideId "4166299"]
[BlackFideId "125687"]
[WhiteElo "2574"]
[BlackElo "2378"]
[Result "1-0"]
[Round "6"]
[TimeControl "180+2"]
[Date "2023.07.18"]
[WhiteClock "0:01:01"]
[BlackClock "0:00:40"]
[Board "160"]

1. c4 {[%clk 0:03:00]}  e5 {[%clk 0:02:53]} 2. Nc3 {[%clk 0:03:00]}  Nf6 {[%clk 0:02:52]} 3. Nf3 {[%clk 0:03:01]}  Nc6 {[%clk 0:02:52]} 4. a3 {[%clk 0:03:01]}  d5 {[%clk 0:02:42]} 5. cxd5 {[%clk 0:03:02]}  Nxd5 {[%clk 0:02:43]} 6. e4 {[%clk 0:03:02]}  Nf6 {[%clk 0:02:38]} 7. Bb5 {[%clk 0:03:01]}  Bd6 {[%clk 0:02:28]} 8. O-O {[%clk 0:02:50]}  Bd7 {[%clk 0:02:21]} 9. Bxc6 {[%clk 0:02:41]}  Bxc6 {[%clk 0:02:22]} 10. d4 {[%clk 0:02:42]}  exd4 {[%clk 0:02:14]} 11. Nxd4 {[%clk 0:02:43]}  Qd7 {[%clk 0:02:09]} 12. Nxc6 {[%clk 0:02:32]}  Qxc6 {[%clk 0:02:10]} 13. e5 {[%clk 0:02:28]}  Bxe5 {[%clk 0:02:05]} 14. Re1 {[%clk 0:02:18]}  Qc5 {[%clk 0:01:22]} 15. Bf4 {[%clk 0:01:46]}  Nd7 {[%clk 0:01:16]} 16. Bxe5 {[%clk 0:01:45]}  Nxe5 {[%clk 0:01:16]} 17. Qh5 {[%clk 0:01:40]}  O-O-O {[%clk 0:01:11]} 18. Qxe5 {[%clk 0:01:38]}  Qb6 {[%clk 0:01:05]} 19. b4 {[%clk 0:01:34]}  Rd2 {[%clk 0:01:04]} 20. Rad1 {[%clk 0:01:28]}  Rhd8 {[%clk 0:01:01]} 21. Qf5+ {[%clk 0:01:04]}  Kb8 {[%clk 0:00:40]} 22. Rxd2 {[%clk 0:01:01]} 1-0


[Site "https://www.chess.com"]

[Event "Titled Tuesday Blitz July 18 Early 2023"]
[White "Ionescu, Mihai"]
[Black "TomLiu777"]
[WhiteFideId "1202499"]
[WhiteElo "2533"]
[BlackElo "2335"]
[Result "0-1"]
[Round "6"]
[TimeControl "180+2"]
[Date "2023.07.18"]
[WhiteClock "0:00:00"]
[BlackClock "0:01:20"]
[Board "162"]

1. Nf3 {[%clk 0:03:00]}  Nf6 {[%clk 0:02:59]} 2. g3 {[%clk 0:02:58]}  g6 {[%clk 0:02:59]} 3. b3 {[%clk 0:02:57]}  Bg7 {[%clk 0:03:00]} 4. Bb2 {[%clk 0:02:57]}  O-O {[%clk 0:03:01]} 5. c4 {[%clk 0:02:54]}  b6 {[%clk 0:03:01]} 6. Bg2 {[%clk 0:02:47]}  Bb7 {[%clk 0:03:02]} 7. Kf1 {[%clk 0:02:47]}  c5 {[%clk 0:02:59]} 8. h4 {[%clk 0:02:46]}  Nc6 {[%clk 0:02:57]} 9. d4 {[%clk 0:02:42]}  Nxd4 {[%clk 0:02:54]} 10. Nxd4 {[%clk 0:02:43]}  Bxg2+ {[%clk 0:02:53]} 11. Kxg2 {[%clk 0:02:42]}  cxd4 {[%clk 0:02:54]} 12. Bxd4 {[%clk 0:02:40]}  d5 {[%clk 0:02:53]} 13. Na3 {[%clk 0:02:17]}  dxc4 {[%clk 0:02:46]} 14. Nxc4 {[%clk 0:02:15]}  Qd5+ {[%clk 0:02:46]} 15. f3 {[%clk 0:01:46]}  Rfd8 {[%clk 0:02:39]} 16. Bb2 {[%clk 0:01:24]}  Qe6 {[%clk 0:02:10]} 17. Qc2 {[%clk 0:01:09]}  Rac8 {[%clk 0:02:08]} 18. a4 {[%clk 0:00:46]}  Nd5 {[%clk 0:01:55]} 19. Qd2 {[%clk 0:00:11]}  Rxc4 {[%clk 0:01:26]} 20. e4 {[%clk 0:00:00]}  Rc2 {[%clk 0:01:20]} 0-1


[Site "https://www.chess.com"]

[Event "Titled Tuesday Blitz July 18 Early 2023"]
[White "Spichkin, Alexander"]
[Black "Wartiovaara, Oliver"]
[WhiteFideId "4144074"]
[BlackFideId "513024"]
[WhiteElo "2291"]
[BlackElo "2478"]
[Result "0-1"]
[Round "6"]
[TimeControl "180+2"]
[Date "2023.07.18"]
[WhiteClock "0:01:34"]
[BlackClock "0:02:09"]
[Board "165"]

1. f4 {[%clk 0:02:58]}  e5 {[%clk 0:02:59]} 2. Nf3 {[%clk 0:02:59]}  exf4 {[%clk 0:02:57]} 3. d4 {[%clk 0:02:59]}  g5 {[%clk 0:02:54]} 4. h4 {[%clk 0:02:58]}  g4 {[%clk 0:02:54]} 5. Ng5 {[%clk 0:02:58]}  h6 {[%clk 0:02:52]} 6. Nxf7 {[%clk 0:02:58]}  Kxf7 {[%clk 0:02:51]} 7. Bxf4 {[%clk 0:02:58]}  d5 {[%clk 0:02:50]} 8. e4 {[%clk 0:02:53]}  dxe4 {[%clk 0:02:47]} 9. Bc4+ {[%clk 0:02:15]}  Kg7 {[%clk 0:02:46]} 10. Be5+ {[%clk 0:02:12]}  Nf6 {[%clk 0:02:39]} 11. O-O {[%clk 0:02:12]}  Be7 {[%clk 0:02:39]} 12. Nd2 {[%clk 0:02:13]}  Nc6 {[%clk 0:02:39]} 13. Nxe4 {[%clk 0:02:10]}  Nxe5 {[%clk 0:02:38]} 14. dxe5 {[%clk 0:02:01]}  Nxe4 {[%clk 0:02:13]} 15. Rf7+ {[%clk 0:02:00]}  Kg6 {[%clk 0:02:11]} 16. Qe2 {[%clk 0:01:39]}  Bc5+ {[%clk 0:02:09]} 17. Kh2 {[%clk 0:01:34]}  Qxh4# {[%clk 0:02:09]} 0-1


[Site "https://www.chess.com"]

[Event "Titled Tuesday Blitz July 18 Early 2023"]
[White "Vila Dupla, Aurelio"]
[Black "Ansh M Shah"]
[WhiteFideId "2203383"]
[BlackFideId "25033379"]
[WhiteElo "2202"]
[BlackElo "2483"]
[Result "0-1"]
[Round "6"]
[TimeControl "180+2"]
[Date "2023.07.18"]
[WhiteClock "0:00:53"]
[BlackClock "0:01:55"]
[Board "171"]

1. Nf3 {[%clk 0:03:00]}  Nf6 {[%clk 0:02:59]} 2. d4 {[%clk 0:02:58]}  g6 {[%clk 0:03:00]} 3. g3 {[%clk 0:02:57]}  Bg7 {[%clk 0:03:01]} 4. Bg2 {[%clk 0:02:57]}  O-O {[%clk 0:03:02]} 5. O-O {[%clk 0:02:57]}  d5 {[%clk 0:03:02]} 6. c4 {[%clk 0:02:56]}  c6 {[%clk 0:03:02]} 7. cxd5 {[%clk 0:02:56]}  cxd5 {[%clk 0:03:03]} 8. Nc3 {[%clk 0:02:56]}  Nc6 {[%clk 0:03:04]} 9. Ne5 {[%clk 0:02:55]}  Bf5 {[%clk 0:02:56]} 10. Nxc6 {[%clk 0:02:54]}  bxc6 {[%clk 0:02:56]} 11. Na4 {[%clk 0:02:55]}  Be4 {[%clk 0:02:53]} 12. Bh3 {[%clk 0:02:39]}  Bf5 {[%clk 0:02:51]} 13. Bg2 {[%clk 0:02:39]}  Be4 {[%clk 0:02:51]} 14. Bh3 {[%clk 0:02:39]}  Qa5 {[%clk 0:02:47]} 15. b3 {[%clk 0:02:34]}  Bf5 {[%clk 0:02:45]} 16. Bg2 {[%clk 0:02:27]}  Ne4 {[%clk 0:02:42]} 17. Ba3 {[%clk 0:02:25]}  Rfe8 {[%clk 0:02:27]} 18. Rc1 {[%clk 0:01:56]}  Rac8 {[%clk 0:02:24]} 19. Bc5 {[%clk 0:01:52]}  Nxc5 {[%clk 0:02:21]} 20. Rxc5 {[%clk 0:01:51]}  Qb4 {[%clk 0:02:20]} 21. e3 {[%clk 0:01:45]}  e5 {[%clk 0:02:17]} 22. dxe5 {[%clk 0:01:42]}  Bxe5 {[%clk 0:02:17]} 23. Qc1 {[%clk 0:01:39]}  d4 {[%clk 0:02:15]} 24. Rxc6 {[%clk 0:01:26]}  dxe3 {[%clk 0:02:14]} 25. Rc5 {[%clk 0:01:15]}  Rxc5 {[%clk 0:02:02]} 26. Qxc5 {[%clk 0:01:11]}  Qxc5 {[%clk 0:02:00]} 27. Nxc5 {[%clk 0:00:53]}  e2 {[%clk 0:01:55]} 0-1


[Site "https://www.chess.com"]

[Event "Titled Tuesday Blitz July 18 Early 2023"]
[White "Ljukin, Sergei"]
[Black "Novikova, Margarita"]
[WhiteFideId "14102200"]
[BlackFideId "14109689"]
[WhiteElo "2463"]
[BlackElo "2192"]
[Result "1-0"]
[Round "6"]
[TimeControl "180+2"]
[Date "2023.07.18"]
[WhiteClock "0:00:10"]
[BlackClock "0:00:19"]
[Board "173"]

1. e4 {[%clk 0:02:56]}  e5 {[%clk 0:02:40]} 2. Nf3 {[%clk 0:02:54]}  Nc6 {[%clk 0:02:39]} 3. Bb5 {[%clk 0:02:54]}  a6 {[%clk 0:02:39]} 4. Ba4 {[%clk 0:02:55]}  Nf6 {[%clk 0:02:37]} 5. Qe2 {[%clk 0:02:54]}  b5 {[%clk 0:02:35]} 6. Bb3 {[%clk 0:02:55]}  Nd4 {[%clk 0:02:25]} 7. Nxd4 {[%clk 0:02:46]}  exd4 {[%clk 0:02:26]} 8. e5 {[%clk 0:02:46]}  Ng8 {[%clk 0:02:20]} 9. a4 {[%clk 0:02:45]}  Bb7 {[%clk 0:02:18]} 10. O-O {[%clk 0:02:40]}  Be7 {[%clk 0:02:11]} 11. Qg4 {[%clk 0:02:35]}  Nh6 {[%clk 0:02:05]} 12. Qxg7 {[%clk 0:02:06]}  Rg8 {[%clk 0:01:37]} 13. Bxf7+ {[%clk 0:02:05]}  Nxf7 {[%clk 0:01:37]} 14. Qxg8+ {[%clk 0:02:04]}  Bf8 {[%clk 0:01:37]} 15. axb5 {[%clk 0:01:47]}  Qh4 {[%clk 0:01:08]} 16. bxa6 {[%clk 0:01:27]}  Bc6 {[%clk 0:01:03]} 17. d3 {[%clk 0:01:06]}  Nh6 {[%clk 0:00:41]} 18. Bxh6 {[%clk 0:00:22]}  Qxh6 {[%clk 0:00:42]} 19. f4 {[%clk 0:00:18]}  O-O-O {[%clk 0:00:40]} 20. a7 {[%clk 0:00:15]}  Ba8 {[%clk 0:00:37]} 21. Qg5 {[%clk 0:00:13]}  Qc6 {[%clk 0:00:34]} 22. Nd2 {[%clk 0:00:10]}  Bh6 {[%clk 0:00:31]} 23. Qg3 {[%clk 0:00:10]}  Qe6 {[%clk 0:00:28]} 24. Ne4 {[%clk 0:00:10]}  Rg8 {[%clk 0:00:26]} 25. Qf3 {[%clk 0:00:10]}  Rg4 {[%clk 0:00:18]} 26. Nd6+ {[%clk 0:00:10]}  cxd6 {[%clk 0:00:18]} 27. Qxa8+ {[%clk 0:00:10]}  Kc7 {[%clk 0:00:18]} 28. Qb8+ {[%clk 0:00:10]}  Kc6 {[%clk 0:00:19]} 29. a8=Q+ {[%clk 0:00:10]}  Kc5 {[%clk 0:00:19]} 30. Ra5# {[%clk 0:00:10]} 1-0


[Site "https://www.chess.com"]

[Event "Titled Tuesday Blitz July 18 Early 2023"]
[White "BeautiFullMindChess"]
[Black "Baches Garcia, Guillermo"]
[BlackFideId "2209764"]
[WhiteElo "2186"]
[BlackElo "2425"]
[Result "0-1"]
[Round "6"]
[TimeControl "180+2"]
[Date "2023.07.18"]
[WhiteClock "0:00:06"]
[BlackClock "0:02:42"]
[Board "174"]

1. e4 {[%clk 0:03:00]}  c5 {[%clk 0:03:00]} 2. Nf3 {[%clk 0:02:59]}  d6 {[%clk 0:03:00]} 3. d4 {[%clk 0:02:59]}  cxd4 {[%clk 0:03:01]} 4. Nxd4 {[%clk 0:03:00]}  Nf6 {[%clk 0:03:02]} 5. Nc3 {[%clk 0:03:00]}  Nc6 {[%clk 0:03:02]} 6. Bg5 {[%clk 0:02:50]}  e6 {[%clk 0:03:02]} 7. Qd2 {[%clk 0:02:49]}  h6 {[%clk 0:03:03]} 8. Bh4 {[%clk 0:02:45]}  Nxe4 {[%clk 0:03:02]} 9. Nxe4 {[%clk 0:02:45]}  Qxh4 {[%clk 0:03:02]} 10. Nxd6+ {[%clk 0:02:29]}  Bxd6 {[%clk 0:02:57]} 11. Nxc6 {[%clk 0:02:27]}  Qe4+ {[%clk 0:02:55]} 12. Be2 {[%clk 0:01:59]}  Qxc6 {[%clk 0:02:51]} 13. O-O-O {[%clk 0:01:50]}  Be7 {[%clk 0:02:45]} 14. Bf3 {[%clk 0:00:11]}  Qc7 {[%clk 0:02:44]} 15. g4 {[%clk 0:00:06]}  Bg5 {[%clk 0:02:42]} 0-1


[Site "https://www.chess.com"]